[Event "Titled Tuesday Blitz June 6 Early 2023"]
[White "Moral Garcia, Serafin"]
[Black "Topalov, Aleksandar"]
[WhiteFideId "2201925"]
[BlackFideId "925659"]
[WhiteElo "2274"]
[BlackElo "2151"]
[Result "1-0"]
[Round "9"]
[TimeControl "180+2"]
[Date "2023.06.06"]
[WhiteClock "0:01:18"]
[BlackClock "0:01:17"]
[Board "95"]

1. c4 {[%clk 0:03:00]}  Nf6 {[%clk 0:02:54]} 2. Nc3 {[%clk 0:02:59]}  g6 {[%clk 0:02:43]} 3. g3 {[%clk 0:02:59]}  Bg7 {[%clk 0:02:43]} 4. Bg2 {[%clk 0:02:59]}  O-O {[%clk 0:02:43]} 5. d3 {[%clk 0:02:57]}  d6 {[%clk 0:02:43]} 6. Nf3 {[%clk 0:02:55]}  c5 {[%clk 0:02:43]} 7. a3 {[%clk 0:02:53]}  Nc6 {[%clk 0:02:39]} 8. Rb1 {[%clk 0:02:53]}  a5 {[%clk 0:02:37]} 9. O-O {[%clk 0:02:51]}  Bd7 {[%clk 0:02:37]} 10. Bd2 {[%clk 0:02:49]}  b6 {[%clk 0:02:37]} 11. Ne1 {[%clk 0:02:44]}  Rb8 {[%clk 0:02:37]} 12. Nc2 {[%clk 0:02:43]}  Re8 {[%clk 0:02:11]} 13. b4 {[%clk 0:02:41]}  axb4 {[%clk 0:02:11]} 14. axb4 {[%clk 0:02:39]}  cxb4 {[%clk 0:02:10]} 15. Nxb4 {[%clk 0:02:38]}  Nxb4 {[%clk 0:02:10]} 16. Rxb4 {[%clk 0:02:38]}  Qc7 {[%clk 0:02:06]} 17. Qb3 {[%clk 0:02:32]}  Bc6 {[%clk 0:02:05]} 18. Nb5 {[%clk 0:02:24]}  Qd7 {[%clk 0:01:57]} 19. Ra1 {[%clk 0:02:19]}  Bxb5 {[%clk 0:01:48]} 20. Rxb5 {[%clk 0:02:18]}  Ne4 {[%clk 0:01:48]} 21. Ra2 {[%clk 0:02:06]}  Nxd2 {[%clk 0:01:47]} 22. Rxd2 {[%clk 0:02:05]}  Bd4 {[%clk 0:01:38]} 23. e3 {[%clk 0:02:02]}  Bf6 {[%clk 0:01:32]} 24. Ra2 {[%clk 0:01:53]}  e6 {[%clk 0:01:29]} 25. Ra6 {[%clk 0:01:44]}  Bd8 {[%clk 0:01:29]} 26. Qa4 {[%clk 0:01:38]}  Rc8 {[%clk 0:01:24]} 27. h4 {[%clk 0:01:25]}  Rc5 {[%clk 0:01:23]} 28. Ra7 {[%clk 0:01:20]}  Qc8 {[%clk 0:01:17]} 29. Rxc5 {[%clk 0:01:18]} 1-0


[Site "https://www.chess.com"]

[Event "Titled Tuesday Blitz June 6 Early 2023"]
[White "Srdanovic, Jovana"]
[Black "Baraeva, Irina"]
[WhiteFideId "954810"]
[BlackFideId "24142565"]
[WhiteElo "2155"]
[BlackElo "2085"]
[Result "1/2-1/2"]
[Round "9"]
[TimeControl "180+2"]
[Date "2023.06.06"]
[WhiteClock "0:00:34"]
[BlackClock "0:00:35"]
[Board "99"]

1. d4 {[%clk 0:02:59]}  d5 {[%clk 0:02:59]} 2. c4 {[%clk 0:02:57]}  c6 {[%clk 0:02:59]} 3. Nc3 {[%clk 0:02:56]}  Nf6 {[%clk 0:02:59]} 4. Nf3 {[%clk 0:02:57]}  dxc4 {[%clk 0:02:59]} 5. a4 {[%clk 0:02:56]}  Bf5 {[%clk 0:02:59]} 6. e3 {[%clk 0:02:56]}  e6 {[%clk 0:02:59]} 7. Bxc4 {[%clk 0:02:57]}  Bb4 {[%clk 0:03:00]} 8. O-O {[%clk 0:02:57]}  O-O {[%clk 0:03:00]} 9. Qe2 {[%clk 0:02:57]}  Bg6 {[%clk 0:03:00]} 10. Ne5 {[%clk 0:02:57]}  Nbd7 {[%clk 0:03:01]} 11. f4 {[%clk 0:02:57]}  c5 {[%clk 0:02:52]} 12. g4 {[%clk 0:02:46]}  cxd4 {[%clk 0:02:45]} 13. exd4 {[%clk 0:02:47]}  Nb6 {[%clk 0:02:44]} 14. Be3 {[%clk 0:02:45]}  Nxc4 {[%clk 0:02:38]} 15. Qxc4 {[%clk 0:02:42]}  Qe7 {[%clk 0:02:32]} 16. Rac1 {[%clk 0:02:34]}  Rac8 {[%clk 0:02:23]} 17. Qe2 {[%clk 0:02:33]}  Rfd8 {[%clk 0:02:14]} 18. Nb5 {[%clk 0:02:05]}  a6 {[%clk 0:02:09]} 19. Nc3 {[%clk 0:02:05]}  Bxc3 {[%clk 0:01:10]} 20. bxc3 {[%clk 0:02:05]}  Be4 {[%clk 0:01:09]} 21. c4 {[%clk 0:02:01]}  Nd7 {[%clk 0:01:07]} 22. Bf2 {[%clk 0:01:53]}  Nxe5 {[%clk 0:01:02]} 23. fxe5 {[%clk 0:01:54]}  Bg6 {[%clk 0:01:01]} 24. h4 {[%clk 0:01:49]}  h6 {[%clk 0:01:01]} 25. h5 {[%clk 0:01:46]}  Bh7 {[%clk 0:01:01]} 26. Qe3 {[%clk 0:01:47]}  Rd7 {[%clk 0:00:59]} 27. Kh2 {[%clk 0:01:37]}  Rdc7 {[%clk 0:00:59]} 28. Qb3 {[%clk 0:01:28]}  Qg5 {[%clk 0:00:58]} 29. Kh3 {[%clk 0:01:29]}  Be4 {[%clk 0:00:55]} 30. Be3 {[%clk 0:01:21]}  Qe7 {[%clk 0:00:54]} 31. Rf4 {[%clk 0:01:13]}  Bh7 {[%clk 0:00:52]} 32. Rcf1 {[%clk 0:01:12]}  Qe8 {[%clk 0:00:46]} 33. c5 {[%clk 0:01:11]}  Rd8 {[%clk 0:00:45]} 34. Bd2 {[%clk 0:01:01]}  Re7 {[%clk 0:00:41]} 35. Be1 {[%clk 0:00:57]}  Red7 {[%clk 0:00:40]} 36. Bh4 {[%clk 0:00:52]}  Rxd4 {[%clk 0:00:38]} 37. Bxd8 {[%clk 0:00:52]}  Rd3+ {[%clk 0:00:38]} 38. Qxd3 {[%clk 0:00:44]}  Bxd3 {[%clk 0:00:38]} 39. Rd1 {[%clk 0:00:44]}  Qxd8 {[%clk 0:00:38]} 40. Rf3 {[%clk 0:00:43]}  Qd5 {[%clk 0:00:37]} 41. Rdxd3 {[%clk 0:00:34]}  Qxc5 {[%clk 0:00:36]} 42. Rd8+ {[%clk 0:00:34]}  Kh7 {[%clk 0:00:35]} 43. Rxf7 {[%clk 0:00:34]}  Qxe5 {[%clk 0:00:35]} 44. Rdd7 {[%clk 0:00:34]}  Qe3+ {[%clk 0:00:35]} 45. Kg2 {[%clk 0:00:33]}  Qe2+ {[%clk 0:00:35]} 46. Kg3 {[%clk 0:00:33]}  Qe3+ {[%clk 0:00:35]} 47. Kg2 {[%clk 0:00:34]}  Qe2+ {[%clk 0:00:36]} 48. Kg3 {[%clk 0:00:34]}  Qe3+ {[%clk 0:00:35]} 49. Kg2 {[%clk 0:00:34]} 1/2-1/2


[Site "https://www.chess.com"]

[Event "Titled Tuesday Blitz June 6 Early 2023"]
[White "Estrada Nieto, Julian"]
[Black "Sargissyan, Sargis"]
[WhiteFideId "5101018"]
[BlackFideId "13303210"]
[WhiteElo "2161"]
[BlackElo "2109"]
[Result "1-0"]
[Round "9"]
[TimeControl "180+2"]
[Date "2023.06.06"]
[WhiteClock "0:00:17"]
[BlackClock "0:00:05"]
[Board "100"]

1. e4 {[%clk 0:03:00]}  c5 {[%clk 0:02:56]} 2. Nf3 {[%clk 0:03:01]}  d6 {[%clk 0:02:56]} 3. Bb5+ {[%clk 0:03:00]}  Nd7 {[%clk 0:02:55]} 4. d4 {[%clk 0:03:00]}  cxd4 {[%clk 0:02:55]} 5. Qxd4 {[%clk 0:03:00]}  a6 {[%clk 0:02:55]} 6. Bxd7+ {[%clk 0:03:01]}  Bxd7 {[%clk 0:02:56]} 7. Nc3 {[%clk 0:03:01]}  h6 {[%clk 0:02:53]} 8. O-O {[%clk 0:02:49]}  e5 {[%clk 0:02:50]} 9. Qd3 {[%clk 0:02:49]}  Nf6 {[%clk 0:02:51]} 10. Rd1 {[%clk 0:02:43]}  Be7 {[%clk 0:02:49]} 11. Nd2 {[%clk 0:02:43]}  O-O {[%clk 0:02:38]} 12. a4 {[%clk 0:02:36]}  Be6 {[%clk 0:02:18]} 13. Nf1 {[%clk 0:02:36]}  Nd7 {[%clk 0:02:10]} 14. Ne3 {[%clk 0:02:32]}  Nc5 {[%clk 0:02:10]} 15. Qe2 {[%clk 0:02:32]}  Bg5 {[%clk 0:02:04]} 16. a5 {[%clk 0:02:19]}  Rc8 {[%clk 0:02:03]} 17. f3 {[%clk 0:02:02]}  Bxe3+ {[%clk 0:01:44]} 18. Bxe3 {[%clk 0:02:02]}  f5 {[%clk 0:01:44]} 19. Qd2 {[%clk 0:01:52]}  fxe4 {[%clk 0:01:44]} 20. Qxd6 {[%clk 0:01:42]}  Qxd6 {[%clk 0:01:03]} 21. Rxd6 {[%clk 0:01:41]}  Bf5 {[%clk 0:01:03]} 22. Bxc5 {[%clk 0:01:37]}  Rxc5 {[%clk 0:01:02]} 23. fxe4 {[%clk 0:01:37]}  Bh7 {[%clk 0:00:45]} 24. Rd7 {[%clk 0:01:26]}  Rc4 {[%clk 0:00:40]} 25. Re1 {[%clk 0:01:11]}  Rd4 {[%clk 0:00:27]} 26. Rd1 {[%clk 0:00:51]}  Rxd1+ {[%clk 0:00:13]} 27. Rxd1 {[%clk 0:00:49]}  Rf4 {[%clk 0:00:09]} 28. Rd8+ {[%clk 0:00:42]}  Kf7 {[%clk 0:00:09]} 29. Rd7+ {[%clk 0:00:42]}  Kf6 {[%clk 0:00:10]} 30. Rxb7 {[%clk 0:00:42]}  Bxe4 {[%clk 0:00:10]} 31. Rb6+ {[%clk 0:00:40]}  Kf5 {[%clk 0:00:09]} 32. Ne2 {[%clk 0:00:26]}  Rg4 {[%clk 0:00:05]} 33. Ng3+ {[%clk 0:00:21]}  Kg5 {[%clk 0:00:01]} 34. Nxe4+ {[%clk 0:00:17]}  Rxe4 {[%clk 0:00:01]} 35. Rxa6 {[%clk 0:00:18]}  Re2 {[%clk 0:00:01]} 36. Rc6 {[%clk 0:00:17]}  Kf4 {[%clk 0:00:01]} 37. a6 {[%clk 0:00:16]}  Ke3 {[%clk 0:00:02]} 38. h3 {[%clk 0:00:16]}  e4 {[%clk 0:00:01]} 39. a7 {[%clk 0:00:15]}  Re1+ {[%clk 0:00:02]} 40. Kh2 {[%clk 0:00:16]}  Ra1 {[%clk 0:00:03]} 41. Rc7 {[%clk 0:00:16]}  Ke2 {[%clk 0:00:03]} 42. b4 {[%clk 0:00:16]}  e3 {[%clk 0:00:03]} 43. b5 {[%clk 0:00:16]}  Kf2 {[%clk 0:00:03]} 44. b6 {[%clk 0:00:16]}  e2 {[%clk 0:00:04]} 45. Rf7+ {[%clk 0:00:17]}  Ke3 {[%clk 0:00:05]} 46. Re7+ {[%clk 0:00:17]}  Kf2 {[%clk 0:00:05]} 47. Rxe2+ {[%clk 0:00:16]}  Kxe2 {[%clk 0:00:05]} 48. b7 {[%clk 0:00:17]} 1-0


[Site "https://www.chess.com"]

[Event "Titled Tuesday Blitz June 6 Early 2023"]
[White "Vifleemskaia, Svetlana"]
[Black "Balla, Tamas-Kristof"]
[WhiteFideId "4129490"]
[BlackFideId "1208497"]
[WhiteElo "1930"]
[BlackElo "2334"]
[Result "0-1"]
[Round "9"]
[TimeControl "180+2"]
[Date "2023.06.06"]
[WhiteClock "0:00:14"]
[BlackClock "0:01:11"]
[Board "103"]

1. d4 {[%clk 0:03:00]}  d5 {[%clk 0:02:59]} 2. c4 {[%clk 0:02:58]}  e6 {[%clk 0:03:00]} 3. Nc3 {[%clk 0:02:56]}  c5 {[%clk 0:03:00]} 4. cxd5 {[%clk 0:02:55]}  exd5 {[%clk 0:03:01]} 5. Nf3 {[%clk 0:02:54]}  Nc6 {[%clk 0:03:00]} 6. g3 {[%clk 0:02:50]}  Nf6 {[%clk 0:03:00]} 7. Bg2 {[%clk 0:02:50]}  cxd4 {[%clk 0:03:01]} 8. Nxd4 {[%clk 0:02:49]}  Bc5 {[%clk 0:03:02]} 9. Nb3 {[%clk 0:02:46]}  Bb6 {[%clk 0:03:01]} 10. O-O {[%clk 0:02:45]}  d4 {[%clk 0:03:01]} 11. Na4 {[%clk 0:02:10]}  O-O {[%clk 0:03:01]} 12. Nxb6 {[%clk 0:02:06]}  axb6 {[%clk 0:03:01]} 13. Bg5 {[%clk 0:02:00]}  Re8 {[%clk 0:02:53]} 14. e3 {[%clk 0:01:38]}  dxe3 {[%clk 0:02:35]} 15. Qxd8 {[%clk 0:01:32]}  exf2+ {[%clk 0:02:35]} 16. Rxf2 {[%clk 0:01:31]}  Rxd8 {[%clk 0:02:32]} 17. Bxf6 {[%clk 0:01:27]}  gxf6 {[%clk 0:02:33]} 18. Rxf6 {[%clk 0:01:28]}  Be6 {[%clk 0:02:33]} 19. Rff1 {[%clk 0:01:21]}  Ra4 {[%clk 0:02:08]} 20. Nc1 {[%clk 0:01:16]}  Rd2 {[%clk 0:02:03]} 21. Rf2 {[%clk 0:01:12]}  Rd1+ {[%clk 0:01:46]} 22. Rf1 {[%clk 0:01:10]}  Rad4 {[%clk 0:01:41]} 23. Nb3 {[%clk 0:01:04]}  Rxa1 {[%clk 0:01:34]} 24. Rxa1 {[%clk 0:00:53]}  Ra4 {[%clk 0:01:34]} 25. Nc1 {[%clk 0:00:52]}  Nd4 {[%clk 0:01:23]} 26. Nd3 {[%clk 0:00:16]}  Rc4 {[%clk 0:01:12]} 27. Rc1 {[%clk 0:00:14]}  Ne2+ {[%clk 0:01:11]} 0-1


[Site "https://www.chess.com"]

[Event "Titled Tuesday Blitz June 6 Early 2023"]
[White "Rosh Jain"]
[Black "Chernobay, Artem"]
[WhiteFideId "25789465"]
[BlackFideId "4167406"]
[WhiteElo "2233"]
[BlackElo "2474"]
[Result "0-1"]
[Round "9"]
[TimeControl "180+2"]
[Date "2023.06.06"]
[WhiteClock "0:00:01"]
[BlackClock "0:00:16"]
[Board "105"]

1. e4 {[%clk 0:02:55]}  e6 {[%clk 0:02:59]} 2. d4 {[%clk 0:02:53]}  d5 {[%clk 0:02:59]} 3. Nc3 {[%clk 0:02:53]}  Nf6 {[%clk 0:02:59]} 4. Bg5 {[%clk 0:02:51]}  dxe4 {[%clk 0:02:58]} 5. Nxe4 {[%clk 0:02:51]}  Be7 {[%clk 0:02:59]} 6. Bxf6 {[%clk 0:02:51]}  gxf6 {[%clk 0:02:59]} 7. Nf3 {[%clk 0:02:51]}  a6 {[%clk 0:03:00]} 8. Bd3 {[%clk 0:02:50]}  f5 {[%clk 0:02:55]} 9. Ng3 {[%clk 0:02:49]}  b5 {[%clk 0:02:46]} 10. c3 {[%clk 0:02:48]}  Bb7 {[%clk 0:02:44]} 11. Qc2 {[%clk 0:02:47]}  Qd6 {[%clk 0:02:38]} 12. Nh5 {[%clk 0:02:30]}  Rg8 {[%clk 0:02:30]} 13. Ng3 {[%clk 0:02:24]}  Nd7 {[%clk 0:02:24]} 14. O-O-O {[%clk 0:02:21]}  Bxf3 {[%clk 0:02:19]} 15. gxf3 {[%clk 0:02:20]}  Qf4+ {[%clk 0:02:19]} 16. Kb1 {[%clk 0:02:18]}  Qxf3 {[%clk 0:02:19]} 17. a4 {[%clk 0:01:52]}  c6 {[%clk 0:01:41]} 18. Rhe1 {[%clk 0:01:42]}  Kf8 {[%clk 0:01:40]} 19. Re3 {[%clk 0:01:28]}  Qd5 {[%clk 0:01:35]} 20. Nh5 {[%clk 0:01:14]}  Rg5 {[%clk 0:01:26]} 21. Nf4 {[%clk 0:01:12]}  Qd6 {[%clk 0:01:24]} 22. Nh3 {[%clk 0:00:59]}  Rg2 {[%clk 0:01:18]} 23. Rde1 {[%clk 0:00:54]}  Nf6 {[%clk 0:01:03]} 24. Bxf5 {[%clk 0:00:33]}  Nd5 {[%clk 0:01:02]} 25. Be4 {[%clk 0:00:17]}  Nxe3 {[%clk 0:01:02]} 26. Rxe3 {[%clk 0:00:18]}  Rxh2 {[%clk 0:00:56]} 27. Bxh7 {[%clk 0:00:17]}  Rh1+ {[%clk 0:00:45]} 28. Ka2 {[%clk 0:00:15]}  Qd5+ {[%clk 0:00:45]} 29. b3 {[%clk 0:00:15]}  bxa4 {[%clk 0:00:45]} 30. c4 {[%clk 0:00:15]}  axb3+ {[%clk 0:00:43]} 31. Qxb3 {[%clk 0:00:16]}  Qa5+ {[%clk 0:00:43]} 32. Kb2 {[%clk 0:00:16]}  Qd2+ {[%clk 0:00:22]} 33. Bc2 {[%clk 0:00:14]}  Qxd4+ {[%clk 0:00:22]} 34. Rc3 {[%clk 0:00:13]}  Bf6 {[%clk 0:00:19]} 35. Ng5 {[%clk 0:00:09]}  Bxg5 {[%clk 0:00:19]} 36. Ka2 {[%clk 0:00:08]}  Bf6 {[%clk 0:00:18]} 37. Qb4+ {[%clk 0:00:08]}  c5 {[%clk 0:00:15]} 38. Qb6 {[%clk 0:00:07]}  Ra1+ {[%clk 0:00:16]} 39. Kxa1 {[%clk 0:00:06]}  Qxc3+ {[%clk 0:00:16]} 40. Ka2 {[%clk 0:00:04]}  Qxc2+ {[%clk 0:00:17]} 41. Ka3 {[%clk 0:00:04]}  Qc1+ {[%clk 0:00:15]} 42. Kb3 {[%clk 0:00:02]}  Qb1+ {[%clk 0:00:15]} 43. Ka3 {[%clk 0:00:02]}  Qxb6 {[%clk 0:00:14]} 44. f4 {[%clk 0:00:01]}  Qb2+ {[%clk 0:00:15]} 45. Ka4 {[%clk 0:00:01]}  Qb4# {[%clk 0:00:16]} 0-1


[Site "https://www.chess.com"]

[Event "Titled Tuesday Blitz June 6 Early 2023"]
[White "Novikov, Evgenij"]
[Black "Zenin, Dmitry"]
[WhiteFideId "4125380"]
[BlackFideId "4127897"]
[WhiteElo "2242"]
[BlackElo "2215"]
[Result "1-0"]
[Round "9"]
[TimeControl "180+2"]
[Date "2023.06.06"]
[WhiteClock "0:00:35"]
[BlackClock "0:00:35"]
[Board "106"]

1. d4 {[%clk 0:03:00]}  Nf6 {[%clk 0:02:59]} 2. Nf3 {[%clk 0:03:01]}  g6 {[%clk 0:02:59]} 3. Bf4 {[%clk 0:03:01]}  Bg7 {[%clk 0:02:59]} 4. e3 {[%clk 0:03:02]}  d6 {[%clk 0:02:59]} 5. Be2 {[%clk 0:03:02]}  Nh5 {[%clk 0:02:56]} 6. Bg5 {[%clk 0:03:01]}  h6 {[%clk 0:02:56]} 7. Bh4 {[%clk 0:03:01]}  c5 {[%clk 0:02:50]} 8. c3 {[%clk 0:03:00]}  g5 {[%clk 0:02:48]} 9. Nfd2 {[%clk 0:02:59]}  cxd4 {[%clk 0:02:46]} 10. cxd4 {[%clk 0:02:27]}  Nf4 {[%clk 0:02:45]} 11. exf4 {[%clk 0:02:21]}  gxh4 {[%clk 0:02:44]} 12. Nb3 {[%clk 0:02:14]}  Nc6 {[%clk 0:02:35]} 13. Nc3 {[%clk 0:02:10]}  d5 {[%clk 0:02:17]} 14. Bf3 {[%clk 0:02:02]}  e6 {[%clk 0:02:15]} 15. O-O {[%clk 0:01:59]}  Qb6 {[%clk 0:02:13]} 16. Ne2 {[%clk 0:01:54]}  a5 {[%clk 0:02:06]} 17. a4 {[%clk 0:01:53]}  f5 {[%clk 0:02:01]} 18. Bh5+ {[%clk 0:01:47]}  Kf8 {[%clk 0:01:59]} 19. Qd3 {[%clk 0:01:35]}  Bf6 {[%clk 0:01:55]} 20. Rfe1 {[%clk 0:01:27]}  Kg7 {[%clk 0:01:46]} 21. Rad1 {[%clk 0:01:26]}  Nb4 {[%clk 0:01:33]} 22. Qc3 {[%clk 0:01:14]}  Bd7 {[%clk 0:01:29]} 23. Nc5 {[%clk 0:01:09]}  Be8 {[%clk 0:01:13]} 24. Ng3 {[%clk 0:00:41]}  hxg3 {[%clk 0:00:35]} 25. Qxg3+ {[%clk 0:00:41]}  Kh7 {[%clk 0:00:35]} 26. Rxe6 {[%clk 0:00:35]} 1-0


[Site "https://www.chess.com"]

[Event "Titled Tuesday Blitz June 6 Early 2023"]
[White "Dwilewicz, Katarzyna"]
[Black "Turzo, Attila"]
[WhiteFideId "1148486"]
[BlackFideId "704954"]
[WhiteElo "2098"]
[BlackElo "2471"]
[Result "0-1"]
[Round "9"]
[TimeControl "180+2"]
[Date "2023.06.06"]
[WhiteClock "0:00:15"]
[BlackClock "0:01:13"]
[Board "109"]

1. e4 {[%clk 0:03:00]}  d6 {[%clk 0:02:59]} 2. d4 {[%clk 0:03:00]}  Nf6 {[%clk 0:03:00]} 3. Nc3 {[%clk 0:03:00]}  g6 {[%clk 0:03:00]} 4. f4 {[%clk 0:02:59]}  Bg7 {[%clk 0:03:00]} 5. Nf3 {[%clk 0:02:59]}  O-O {[%clk 0:02:59]} 6. e5 {[%clk 0:02:59]}  dxe5 {[%clk 0:02:53]} 7. dxe5 {[%clk 0:02:59]}  Qxd1+ {[%clk 0:02:52]} 8. Nxd1 {[%clk 0:03:00]}  Nd5 {[%clk 0:02:49]} 9. c4 {[%clk 0:02:58]}  Nb4 {[%clk 0:02:48]} 10. Ne3 {[%clk 0:02:56]}  a5 {[%clk 0:02:39]} 11. a3 {[%clk 0:02:53]}  N4a6 {[%clk 0:02:39]} 12. b4 {[%clk 0:02:49]}  b6 {[%clk 0:02:32]} 13. Bb2 {[%clk 0:02:33]}  Bb7 {[%clk 0:02:33]} 14. Nd5 {[%clk 0:02:17]}  e6 {[%clk 0:02:17]} 15. Nf6+ {[%clk 0:02:07]}  Bxf6 {[%clk 0:02:14]} 16. exf6 {[%clk 0:02:06]}  axb4 {[%clk 0:02:14]} 17. axb4 {[%clk 0:02:04]}  Nxb4 {[%clk 0:02:14]} 18. Rxa8 {[%clk 0:02:04]}  Bxa8 {[%clk 0:02:15]} 19. Kd2 {[%clk 0:02:00]}  Rd8+ {[%clk 0:02:12]} 20. Kc3 {[%clk 0:01:58]}  c5 {[%clk 0:02:07]} 21. Be2 {[%clk 0:01:54]}  Bxf3 {[%clk 0:02:07]} 22. gxf3 {[%clk 0:01:49]}  N8c6 {[%clk 0:01:57]} 23. h4 {[%clk 0:01:45]}  h5 {[%clk 0:01:55]} 24. Ra1 {[%clk 0:01:33]}  Na5 {[%clk 0:01:54]} 25. Ba3 {[%clk 0:01:16]}  Nac6 {[%clk 0:01:48]} 26. Rg1 {[%clk 0:01:09]}  Kf8 {[%clk 0:01:46]} 27. Rb1 {[%clk 0:01:02]}  Ke8 {[%clk 0:01:42]} 28. Rb2 {[%clk 0:00:55]}  Kd7 {[%clk 0:01:41]} 29. Bd1 {[%clk 0:00:53]}  Kc7 {[%clk 0:01:40]} 30. Rb1 {[%clk 0:00:44]}  Rd3+ {[%clk 0:01:35]} 31. Kb2 {[%clk 0:00:44]}  Nd4 {[%clk 0:01:31]} 32. Bxb4 {[%clk 0:00:36]}  cxb4 {[%clk 0:01:31]} 33. Ra1 {[%clk 0:00:29]}  Kc6 {[%clk 0:01:26]} 34. Kc1 {[%clk 0:00:27]}  Ra3 {[%clk 0:01:21]} 35. Rb1 {[%clk 0:00:24]}  Kc5 {[%clk 0:01:21]} 36. Rb2 {[%clk 0:00:20]}  Ra1+ {[%clk 0:01:15]} 37. Kd2 {[%clk 0:00:19]}  Kxc4 {[%clk 0:01:15]} 38. Be2+ {[%clk 0:00:18]}  Nxe2 {[%clk 0:01:15]} 39. Kxe2 {[%clk 0:00:18]}  b3 {[%clk 0:01:15]} 40. f5 {[%clk 0:00:17]}  exf5 {[%clk 0:01:13]} 41. Rd2 {[%clk 0:00:15]}  Ra2 {[%clk 0:01:13]} 0-1


[Site "https://www.chess.com"]

[Event "Titled Tuesday Blitz June 6 Early 2023"]
[White "Horak, Martin"]
[Black "Goswami, Vedant"]
[WhiteFideId "367095"]
[BlackFideId "5003725"]
[WhiteElo "2091"]
[BlackElo "2011"]
[Result "0-1"]
[Round "9"]
[TimeControl "180+2"]
[Date "2023.06.06"]
[WhiteClock "0:00:03"]
[BlackClock "0:00:08"]
[Board "110"]

1. e4 {[%clk 0:03:00]}  e5 {[%clk 0:02:55]} 2. Nc3 {[%clk 0:02:59]}  Nf6 {[%clk 0:02:53]} 3. Bc4 {[%clk 0:02:59]}  Bb4 {[%clk 0:02:48]} 4. d3 {[%clk 0:02:56]}  c6 {[%clk 0:02:45]} 5. f4 {[%clk 0:02:48]}  d5 {[%clk 0:02:29]} 6. exd5 {[%clk 0:02:42]}  Nxd5 {[%clk 0:02:26]} 7. Ne2 {[%clk 0:02:41]}  Qh4+ {[%clk 0:02:09]} 8. g3 {[%clk 0:02:38]}  Qe7 {[%clk 0:02:07]} 9. fxe5 {[%clk 0:02:10]}  Qxe5 {[%clk 0:01:53]} 10. Bxd5 {[%clk 0:02:05]}  cxd5 {[%clk 0:01:50]} 11. Bf4 {[%clk 0:02:04]}  Qh5 {[%clk 0:01:45]} 12. a3 {[%clk 0:02:00]}  Ba5 {[%clk 0:01:39]} 13. Bd6 {[%clk 0:01:15]}  Nc6 {[%clk 0:01:28]} 14. Nf4 {[%clk 0:01:12]}  Qxd1+ {[%clk 0:01:25]} 15. Rxd1 {[%clk 0:00:58]}  Bxc3+ {[%clk 0:01:21]} 16. bxc3 {[%clk 0:00:58]}  Be6 {[%clk 0:01:19]} 17. Kf2 {[%clk 0:00:54]}  Kd7 {[%clk 0:01:18]} 18. Bc5 {[%clk 0:00:54]}  b6 {[%clk 0:01:16]} 19. Be3 {[%clk 0:00:53]}  Rac8 {[%clk 0:01:15]} 20. Rhe1 {[%clk 0:00:50]}  Rhe8 {[%clk 0:01:12]} 21. Rd2 {[%clk 0:00:47]}  f6 {[%clk 0:01:12]} 22. h4 {[%clk 0:00:43]}  Bg4 {[%clk 0:01:10]} 23. Nxd5 {[%clk 0:00:40]}  Ne5 {[%clk 0:01:03]} 24. Bf4 {[%clk 0:00:32]}  Nf3 {[%clk 0:00:44]} 25. Rxe8 {[%clk 0:00:31]}  Rxe8 {[%clk 0:00:44]} 26. Re2 {[%clk 0:00:25]}  Rxe2+ {[%clk 0:00:43]} 27. Kxe2 {[%clk 0:00:26]}  Nxh4+ {[%clk 0:00:40]} 28. Kf2 {[%clk 0:00:24]}  Nf5 {[%clk 0:00:39]} 29. a4 {[%clk 0:00:20]}  Bd1 {[%clk 0:00:30]} 30. Nb4 {[%clk 0:00:20]}  a5 {[%clk 0:00:28]} 31. Nd5 {[%clk 0:00:20]}  Kc6 {[%clk 0:00:27]} 32. c4 {[%clk 0:00:12]}  Bxc2 {[%clk 0:00:27]} 33. Ke2 {[%clk 0:00:12]}  Bxa4 {[%clk 0:00:25]} 34. g4 {[%clk 0:00:11]}  Nd4+ {[%clk 0:00:25]} 35. Ke3 {[%clk 0:00:11]}  Ne6 {[%clk 0:00:24]} 36. Bg3 {[%clk 0:00:10]}  b5 {[%clk 0:00:23]} 37. Nc3 {[%clk 0:00:10]}  Nc5 {[%clk 0:00:18]} 38. d4 {[%clk 0:00:10]}  Nb3 {[%clk 0:00:17]} 39. Bf2 {[%clk 0:00:07]}  Na1 {[%clk 0:00:12]} 40. d5+ {[%clk 0:00:06]}  Kd6 {[%clk 0:00:09]} 41. c5+ {[%clk 0:00:03]}  Kxc5 {[%clk 0:00:08]} 0-1


[Site "https://www.chess.com"]

[Event "Titled Tuesday Blitz June 6 Early 2023"]
[White "Lacasa Diaz, Jose Antonio"]
[Black "Xu, Daniel"]
[WhiteFideId "2203375"]
[BlackFideId "2627345"]
[WhiteElo "2338"]
[BlackElo "1980"]
[Result "1-0"]
[Round "9"]
[TimeControl "180+2"]
[Date "2023.06.06"]
[WhiteClock "0:00:35"]
[BlackClock "0:00:01"]
[Board "111"]

1. d4 {[%clk 0:02:59]}  Nf6 {[%clk 0:03:00]} 2. c4 {[%clk 0:02:58]}  g6 {[%clk 0:03:00]} 3. Nf3 {[%clk 0:02:57]}  Bg7 {[%clk 0:03:00]} 4. Nc3 {[%clk 0:02:57]}  O-O {[%clk 0:03:01]} 5. e4 {[%clk 0:02:56]}  d6 {[%clk 0:03:01]} 6. Be2 {[%clk 0:02:56]}  e5 {[%clk 0:03:02]} 7. d5 {[%clk 0:02:54]}  a5 {[%clk 0:03:02]} 8. Bg5 {[%clk 0:02:54]}  h6 {[%clk 0:03:02]} 9. Bxf6 {[%clk 0:02:52]}  Bxf6 {[%clk 0:03:02]} 10. O-O {[%clk 0:02:49]}  Na6 {[%clk 0:03:01]} 11. Ne1 {[%clk 0:02:47]}  Bg7 {[%clk 0:03:01]} 12. Nd3 {[%clk 0:02:48]}  f5 {[%clk 0:02:59]} 13. a3 {[%clk 0:02:42]}  Nc5 {[%clk 0:02:16]} 14. Nxc5 {[%clk 0:02:41]}  dxc5 {[%clk 0:02:17]} 15. Bd3 {[%clk 0:02:36]}  f4 {[%clk 0:02:13]} 16. Be2 {[%clk 0:02:36]}  h5 {[%clk 0:02:12]} 17. Rb1 {[%clk 0:02:27]}  Rf6 {[%clk 0:02:00]} 18. Bf3 {[%clk 0:02:20]}  Bf8 {[%clk 0:01:57]} 19. h3 {[%clk 0:02:19]}  Rf7 {[%clk 0:01:51]} 20. Na2 {[%clk 0:02:15]}  Qg5 {[%clk 0:01:44]} 21. Kh1 {[%clk 0:02:14]}  Qh4 {[%clk 0:01:43]} 22. Nc1 {[%clk 0:02:08]}  g5 {[%clk 0:01:24]} 23. Nd3 {[%clk 0:01:38]}  g4 {[%clk 0:01:22]} 24. Nxe5 {[%clk 0:01:36]}  gxf3 {[%clk 0:01:13]} 25. Qxf3 {[%clk 0:01:30]}  Rg7 {[%clk 0:01:11]} 26. Nd3 {[%clk 0:01:27]}  Bg4 {[%clk 0:00:43]} 27. Qxf4 {[%clk 0:01:23]}  Bd6 {[%clk 0:00:44]} 28. e5 {[%clk 0:01:23]}  Rf8 {[%clk 0:00:43]} 29. Qg3 {[%clk 0:01:21]}  Qd8 {[%clk 0:00:21]} 30. exd6 {[%clk 0:01:21]}  Bf3 {[%clk 0:00:21]} 31. dxc7 {[%clk 0:01:12]}  Qd7 {[%clk 0:00:15]} 32. Ne5 {[%clk 0:01:10]}  Qxc7 {[%clk 0:00:10]} 33. Qxf3 {[%clk 0:01:05]}  Rxf3 {[%clk 0:00:10]} 34. Nxf3 {[%clk 0:01:05]}  Re7 {[%clk 0:00:07]} 35. Rfe1 {[%clk 0:01:04]}  Rf7 {[%clk 0:00:04]} 36. Re3 {[%clk 0:01:00]}  Qf4 {[%clk 0:00:03]} 37. b3 {[%clk 0:01:00]}  a4 {[%clk 0:00:02]} 38. bxa4 {[%clk 0:00:35]}  Qxc4 {[%clk 0:00:01]} 39. Ne5 {[%clk 0:00:35]} 1-0


[Site "https://www.chess.com"]